Cogmind - Beta 12 @@@ ROGUE MODE // 2023.05.03 @ 11:14:50 Player: Exp. Geonium Core Result: Destroyed by 8R-AWN with 8R-AWN's Boregun Performance ------------- Evolutions (1) 500 Regions Visited (5) 1000 Robots Destroyed (6) 30 Value Destroyed (183) 183 Prototype IDs (23) 460 Alien Tech Used (0) 0 Bonus (-848) -848 TOTAL SCORE: 1325 Bonus ------- Aligned with FarCom 300 Friendly Fire -1148 Cogmind --------- Core Integrity 0/400 Matter 288/500 Energy 99/100 System Corruption 3% Temperature Cool (0) Movement Core (450) Ox8 Location -9/Exiles Parts ------- > --- POWER (1) -------- (None) > --- PROPULSION (3) --- (None) > --- UTILITY (3) ------ Large Storage Unit High-capacity Matter Pod > --- WEAPON (2) ------- Light Assault Rifle > --- INVENTORY (15) --- Light Assault Rifle Grenade Launcher Datajack Datajack Mace Peak State ------------ > --- POWER ------------ Ion Engine > --- PROPULSION ------- Light Treads Light Treads Light Treads > --- UTILITY ---------- Advanced Heat Sink Large Storage Unit High-capacity Matter Pod > --- WEAPON ----------- Assault Rifle Grenade Launcher > --- INVENTORY -------- Reinforced Deuterium Engine Fission Core Light Fission Core Light Treads Light Treads Medium Laser Assault Rifle Light Assault Rifle Light Assault Rifle Light Assault Rifle Light Assault Rifle Light Assault Rifle Datajack Datajack Mace [Rating: 15] Favorites ----------- Power Ion Engine Engine Ion Engine Propulsion Light Treads Treads Light Treads Leg Aluminum Leg Utility Large Storage Unit Device Advanced Heat Sink Storage Large Storage Unit Protection Light Armor Plating Weapon Medium Laser Energy Gun Medium Laser Ballistic Gun Assault Rifle Launcher Grenade Launcher Build | -11 -10 -10 -9 -9 -9 ------- Run | Jun Mat Min Mat Min Exi Slots Evolved 2 | . . . 2 . . Power . | . . . . . . Propulsion 1 | . . . 1 . . Utility 1 | . . . 1 . . Weapon . | . . . . . . Parts Attached 21 | . . 1 6 1 13 Power 1 | . . . . . 1 Engine 1 | . . . . . 1 Core . | . . . . . . Reactor . | . . . . . . Propulsion 6 | . . . 4 . 2 Treads 6 | . . . 4 . 2 Leg . | . . . . . . Wheel . | . . . . . . Hover . | . . . . . . Flight . | . . . . . . Utility 5 | . . 1 2 . 2 Device 1 | . . . . . 1 Storage 3 | . . . 2 . 1 Processor . | . . . . . . Hackware . | . . . . . . Protection 1 | . . 1 . . . Artifact . | . . . . . . Weapon 9 | . . . . 1 8 Energy Gun 1 | . . . . . 1 Energy Cannon . | . . . . . . Ballistic Gun 7 | . . . . . 7 Ballistic Cannon . | . . . . . . Launcher 1 | . . . . 1 . Special Weapon . | . . . . . . Impact Weapon . | . . . . . . Slashing Weapon . | . . . . . . Piercing Weapon . | . . . . . . Special Melee Weapon . | . . . . . . Unidentified Prototypes . | . . . . . . Parts Lost 14 | . . . . 1 13 Power 1 | . . . . . 1 Propulsion 5 | . . . . . 5 Utility 2 | . . . . 1 1 Weapon 6 | . . . . . 6 Highest Loss Streak 12 | . . . . 1 12 To Critical Strikes 10 | . . . . . 10 Average Slot Usage (%) 86 | . 85 100 87 80 84 Engine 10 | . 14 14 11 11 9 Treads 26 | . . . 32 33 28 Leg 3 | . 28 28 . . . Device 4 | . . . . . 8 Storage 14 | . 14 14 11 11 16 Protection 4 | . . 14 11 3 . Energy Gun 7 | . 14 14 11 11 4 Ballistic Gun 9 | . 14 14 11 . 9 Launcher 5 | . . . . 11 7 Naked Turns . | . . . . . . Heaviest Build 35 | 14 14 17 32 33 35 Greatest Support 60 | 20 20 20 60 60 60 Greatest Overweight (x) . | . . . . . . Average Overweight (x) . | . . . . . . Largest Inventory Capacity 15 | . 8 8 15 15 15 Average Capacity 13 | . 8 8 11 15 15 Most Carried 15 | . 6 8 14 14 15 Average Carried 11 | . 6 6 9 14 13 Final Capacity 15 | 8 8 8 15 15 15 Final Carried 14 | 6 6 8 14 14 5 Class Distribution -------------------- 100% | Mutant Dominant Class ---------------- Mutant | -10/Materials Mutant | -10/Mines Mutant | -9/Materials Mutant | -9/Mines Mutant | -9/Exiles Resources | -11 -10 -10 -9 -9 -9 ----------- Run | Jun Mat Min Mat Min Exi Matter Collected 615 | 200 . 43 107 30 235 Remotely . | . . . . . . Salvage Created 392 | . . 112 211 40 29 Parts 9 | . . 1 8 . . Haulers Intercepted . | . . . . . . Recyclers Shooed . | . . . . . . Parts Field Recycled . | . . . . . . Retrieved Matter . | . . . . . . Parts Self-Destructed . | . . . . . . Prevented . | . . . . . . Kills | -11 -10 -10 -9 -9 -9 ------- Run | Jun Mat Min Mat Min Exi Combat Hostiles Destroyed 24 | . . . 5 17 2 Guns 7 | . . . 5 . 2 AOE 17 | . . . . 17 . Classes Destroyed 4 | . . . 3 1 . Grunt 3 | . . . 3 . . Brawler 1 | . . . 1 . . Sentry 1 | . . . 1 . . Assembled 19 | . . . . 17 2 Best Kill Streak 17 | . . . 3 17 2 Combat Bots Only 17 | . . . 3 17 2 Max Kills in Single Turn 3 | . . 1 1 3 1 Gunslinging . | . . . . . . Exploded 3 | . . . . 3 . Melee . | . . . . . . Uniques/NPCs Destroyed 1 | . . 1 . . . YI-UF0 (-10/Mines) Combat | -11 -10 -10 -9 -9 -9 -------- Run | Jun Mat Min Mat Min Exi Damage Taken 2035 | . . . 280 208 1547 Core 400 | . . . 12 23 365 Absorbed by Shields . | . . . . . . Core Remaining (%) 100 | 100 . 100 . . . Volleys Fired 116 | . . 11 17 22 66 Largest 2 | . . 2 2 1 2 Hottest 70 | . . 70 70 30 70 Shots Fired 203 | . . 22 34 22 125 Gun 181 | . . 22 34 . 125 Cannon . | . . . . . . Launcher 22 | . . . . 22 . Special . | . . . . . . Kinetic 147 | . . 11 17 . 119 Thermal 34 | . . 11 17 . 6 Explosive 22 | . . . . 22 . Electromagnetic . | . . . . . . Robot Hit Streak 24 | . . 8 13 4 24 Robot Miss Streak 3 | . . 1 2 2 3 Penetration Max . | . . . . . . Secondary Targets . | . . . . . . Shots Hit Robots 146 | . . 17 29 4 96 Core Hits 81 | . . 5 11 40 25 Critical Kills . | . . . . . . Critical Parts Destroyed . | . . . . . . Critical Strikes 1 | . . . . . 1 Burn 1 | . . . . . 1 Melee Attacks . | . . . . . . Impact . | . . . . . . Slashing . | . . . . . . Piercing . | . . . . . . Sneak Attacks . | . . . . . . Combat Hostiles . | . . . . . . Follow-up Attacks . | . . . . . . Damage Inflicted 2490 | . . 207 381 1038 864 Guns 1446 | . . 207 375 . 864 Cannons . | . . . . . . Explosions 1038 | . . . . 1038 . Melee . | . . . . . . Ramming 6 | . . . 6 . . Kinetic 1109 | . . 93 203 . 813 Thermal 337 | . . 114 172 . 51 Explosive 1038 | . . . . 1038 . Electromagnetic . | . . . . . . Impact . | . . . . . . Slashing . | . . . . . . Piercing . | . . . . . . Highest Corruption 3 | . . . . . 3 Average Corruption 3 | . . . . . 3 Corruption Purged . | . . . . . . Corruption Blocked . | . . . . . . Effects 3 | . . . . . 3 Message Errors 1 | . . . . . 1 Matter Fused 1 | . . . . . 1 Parts Rejected 1 | . . . . . 1 Overload Shots . | . . . . . . Overflow Damage 14 | . . . . 14 . Projectiles . | . . . . . . Explosions 14 | . . . . 14 . Melee . | . . . . . . Knockbacks . | . . . . . . Impact . | . . . . . . Kinetic . | . . . . . . Secondary . | . . . . . . Self-Inflicted Damage 99 | . . . . 99 . Shots 5 | . . . . 5 . Rammed 2 | . . . 2 . . Targets Rammed 2 | . . . 2 . . Kicked . | . . . . . . Crushed . | . . . . . . Highest Temperature 174 | . . 106 174 . 28 Average Temperature 64 | . . 58 78 . 12 Received Heat Transfer 144 | . . . 144 . . Siege Activations . | . . . . . . Robots Corrupted . | . . . . . . Combat Hostiles . | . . . . . . Parts Fried . | . . . . . . Impact Corruptions . | . . . . . . Robots Melted . | . . . . . . Combat Hostiles . | . . . . . . Parts Melted 1 | . . . 1 . . Heat Transferred 905 | . . 333 518 . 54 Parts Sabotaged . | . . . . . . Parts Stolen . | . . . . . . Parts Stripped . | . . . . . . Power Chain Reactions . | . . . . . . Missiles Intercepted . | . . . . . . Alert | -11 -10 -10 -9 -9 -9 ------- Run | Jun Mat Min Mat Min Exi Peak Influence 142 | . 6 1 142 100 . Initial 55 | . . 1 . 55 . Average 58 | . 4 1 70 89 . Maximum Alert Level . | . . . . . . Low Security (%) 100 | . 100 100 100 100 . Level 1 . | . . . . . . Level 2 . | . . . . . . Level 3 . | . . . . . . Level 4 . | . . . . . . Level 5 . | . . . . . . High Security . | . . . . . . Max Security . | . . . . . . Squads Dispatched 2 | . . . 2 . . Investigation 1 | . . . 1 . . Extermination . | . . . . . . Reinforcement 1 | . . . 1 . . Assault . | . . . . . . Garrison . | . . . . . . Intercept . | . . . . . . Searches Triggered . | . . . . . . Construction Impeded . | . . . . . . Haulers Reinforced . | . . . . . . Active Scanning Responses . | . . . . . . Cargo Convoy Interrupts . | . . . . . . Stealth | -11 -10 -10 -9 -9 -9 --------- Run | Jun Mat Min Mat Min Exi Distress Signals . | . . . . . . Communications Jammed . | . . . . . . Distress Signals . | . . . . . . Times Spotted 31 | . 1 . 5 20 5 Peak Tracking Total 11 | . . . 3 9 11 Tactical Retreats 5 | . . . . 3 2 Traps | -11 -10 -10 -9 -9 -9 ------- Run | Jun Mat Min Mat Min Exi Traps Triggered . | . . . . . . Indirectly . | . . . . . . Trap Hack Attempts . | . . . . . . Triggered . | . . . . . . Disarmed . | . . . . . . Reprogrammed . | . . . . . . Reused . | . . . . . . Traps Extracted . | . . . . . . Installed . | . . . . . . Triggered 1 | . . . . 1 . Exploded 3 | . . . . . 3 Machines | -11 -10 -10 -9 -9 -9 ---------- Run | Jun Mat Min Mat Min Exi Machines Disabled 2 | . . . . . 2 Max in Single Turn 1 | . . . . . 1 Machines Repaired . | . . . . . . Machines Sabotaged . | . . . . . . Overloaded Fab Kills . | . . . . . . Hacking | -11 -10 -10 -9 -9 -9 --------- Run | Jun Mat Min Mat Min Exi Machines Accessed 4 | . 1 . 1 . 2 Terminals 2 | . 1 . 1 . . Fabricators . | . . . . . . Repair Stations . | . . . . . . Recycling Units . | . . . . . . Scanalyzers . | . . . . . . Garrison Access . | . . . . . . Total Hacks 8 | . 3 . 3 . 2 Successful 5 | . 1 . 2 . 2 Failed 3 | . 2 . 1 . . Catastrophic . | . . . . . . Database Lockouts . | . . . . . . Manual 5 | . 1 . 3 . 1 Terminals 6 | . 3 . 3 . . Fabricators . | . . . . . . Repair Stations . | . . . . . . Recycling Units . | . . . . . . Scanalyzers . | . . . . . . Garrison Access . | . . . . . . Terminal Hacks 3 | . . . 1 . 2 Record 1 | . . . . . 1 Branch Access Points 1 | . . . 1 . . EX-Prototype ID Bank 1 | . . . . . 1 Fabricator Hacks . | . . . . . . Repair Station Hacks . | . . . . . . Recycling Unit Hacks . | . . . . . . Scanalyzer . | . . . . . . Garrison Access Hacks . | . . . . . . Unauthorized Hacks 2 | . 1 . 1 . . Terminals 2 | . 1 . 1 . . Assimilate 1 | . 1 . . . . Botnet 1 | . . . 1 . . Fabricators . | . . . . . . Repair Stations . | . . . . . . Recycling Units . | . . . . . . Scanalyzers . | . . . . . . Garrison Access . | . . . . . . Data Cores Recovered . | . . . . . . Used . | . . . . . . Hacking Detections 2 | . 1 . 1 . . Full Trace Events . | . . . . . . Feedback Events . | . . . . . . Feedback Blocked . | . . . . . . Robot Schematics Acquired . | . . . . . . Robots Built . | . . . . . . Authchips . | . . . . . . Time . | . . . . . . Total Robot Build Rating . | . . . . . . Part Schematics Acquired . | . . . . . . Parts Built . | . . . . . . Authchips . | . . . . . . Time . | . . . . . . Total Part Build Rating . | . . . . . . Parts Repaired . | . . . . . . Time . | . . . . . . Parts Recycled . | . . . . . . Recycled Matter . | . . . . . . Retrieved Matter . | . . . . . . Retrieved Components . | . . . . . . Parts Scanalyzed . | . . . . . . Part Schematics Acquired . | . . . . . . Parts Damaged . | . . . . . . Bothacking | -11 -10 -10 -9 -9 -9 ------------ Run | Jun Mat Min Mat Min Exi Used RIF Installer . | . . . . . . Robots Hacked . | . . . . . . Non-combat . | . . . . . . Combat . | . . . . . . Robot Hacks Applied . | . . . . . . Relay Couplers Released . | . . . . . . Fabnet Peak Effective % . | . . . . . . Robots Rewired . | . . . . . . Allies Hacked . | . . . . . . Hacks Repelled . | . . . . . . Allies | -11 -10 -10 -9 -9 -9 -------- Run | Jun Mat Min Mat Min Exi Total Allies 1 | . 1 . . . . Largest Group 1 | . 1 1 1 . . Highest-Rated Group 10 | . 10 10 10 . . Highest-Rated Ally 10 | . 10 10 10 . . Total Orders . | . . . . . . Ally Attacks . | . . . . . . Total Damage . | . . . . . . Kills . | . . . . . . Allies Corrupted . | . . . . . . Allies Melted . | . . . . . . Intel | -11 -10 -10 -9 -9 -9 ------- Run | Jun Mat Min Mat Min Exi Robot Analysis Total . | . . . . . . Derelict Logs Recovered 1 | . . 1 . . . Drone Launches . | . . . . . . Drone Recoveries . | . . . . . . Exploration | -11 -10 -10 -9 -9 -9 ------------- Run | Jun Mat Min Mat Min Exi Turns Passed 1299 | . 39 101 331 118 710 Spaces Moved 601 | 1 33 54 162 46 305 Core . | . . . . . . Treads 509 | . . . 158 46 305 Legs 92 | 1 33 54 4 . . Wheels . | . . . . . . Hover . | . . . . . . Flight . | . . . . . . Fastest Speed 120 | 120 120 120 120 160 160 Average Speed 153 | 120 120 120 159 160 160 Slowest Speed 160 | 120 120 120 160 160 160 Overloaded Moves . | . . . . . . Propulsion Burnouts . | . . . . . . Robots Hopped . | . . . . . . Cave-ins Triggered . | . . . . . . Exploration Rate (%) 23 | 2 9 27 22 14 67 Regions Visited 5 Branch Regions 3 Pre-discovered Areas 1 | . . . . . 1 Known Exits Taken 1 | . . . 1 . . Unknown Exits Taken 4 | 1 1 1 . 1 . Scrap Searched 1 | . . 1 . . . Spaces Dug . | . . . . . . Terrain Destroyed 85 | . . . . 85 . Melee . | . . . . . . Projectile . | . . . . . . AOE 85 | . . . . 85 . Terrain Rammed . | . . . . . . Walls Destroyed . | . . . . . . Machines Disabled . | . . . . . . Actions | -11 -10 -10 -9 -9 -9 --------- Run | Jun Mat Min Mat Min Exi Total 788 | . 32 67 201 68 420 Wait 29 | . . . . . 29 Move 596 | . 32 53 161 45 305 Hop . | . . . . . . Pick Up 13 | . . 2 8 . 3 Fast Attach 8 | . . 1 5 . 2 Attach 8 | . . . . . 8 Detach . | . . . . . . Swap 5 | . . . 1 1 3 Drop 11 | . . . 7 . 4 Fire 116 | . . 11 17 22 66 Melee . | . . . . . . Ram . | . . . . . . Kick . | . . . . . . Crush 2 | . . . 2 . . Escape Stasis . | . . . . . . Rewire . | . . . . . . Trap . | . . . . . . Miscellaneous . | . . . . . . Route ------- -11/Junkyard -10/Materials -10/Mines -9/Materials (discovered 4 exits: *Min x2 / *Sto x2) -9/Mines -9/Exiles History --------- Turn | Location | Event 1 | -11/Junkyard | Discovered new exit (range 0) 1 | -11/Junkyard | Entered Materials 13 | -10/Materials | Discovered new exit (range 15) 40 | -10/Materials | Entered Mines 40 | -10/Mines | Accompanied by 1 ally 54 | -10/Mines | Learned Materials garrison access intel 78 | -10/Mines | Discovered new exit (range 9) 83 | -10/Mines | YI-UF0 nonchalantly dropped a Grenade Launcher on the ground 121 | -10/Mines | Destroyed YI-UF0 141 | -10/Mines | Entered Materials 141 | -9/Materials | Accompanied by 1 ally 141 | -9/Materials | Evolved 2 slots: Propulsion x1, Utility x1 305 | -9/Materials | Build established: Mutant 374 | -9/Materials | Identified exit to Mines 374 | -9/Materials | Identified exit to Storage 472 | -9/Materials | Entered Mines 473 | -9/Mines | Assembled infested the area 478 | -9/Mines | Assisted by a Guerilla fighting off Assembled 551 | -9/Mines | Destroyed 17 combat bots 584 | -9/Mines | Deemed a non-threat by the Exiles lab entrance 584 | -9/Mines | Discovered new exit (range 5) 590 | -9/Mines | Entered Exiles 641 | -9/Exiles | Met 8R-AWN 665 | -9/Exiles | Met EX-HEX 712 | -9/Exiles | Met EX-BIN 731 | -9/Exiles | Aligned with FarCom system 732 | -9/Exiles | Given EX-Vault access code 771 | -9/Exiles | Opened EX-Vault 806 | -9/Exiles | Warned to stay clear of 0b10 Research branches 851 | -9/Exiles | Met EX-DEC 859 | -9/Exiles | Learned location of Zion (-7) 1057 | -9/Exiles | Attacked by the Exiles 1217 | -9/Exiles | Core integrity fell below 50% 1267 | -9/Exiles | Core integrity fell below 20% 1300 | -9/Exiles | Destroyed by 8R-AWN with 8R-AWN's Boregun Last Messages --------------- 01228_ Penetrated by HV Slug. 01232_ HV Slug penetrates Earth. 01236_ Penetrated by HV Slug. 01236_ Critical hit (Destroy). 01236_ Lgt. Treads destroyed. 01236_ Penetrated by HV Slug. 01249_ Critical hit (Destroy). 01249_ Lgt. Assault Rifle destroyed. 01253_ Penetrated by HV Slug. 01260_ 8R-AWN suffers critical hit (Burn). 01262_ Penetrated by HV Slug. 01266_ Critical hit (Destroy). 01266_ Med. Laser destroyed. 01270_ Penetrated by HV Slug. 01270_ Critical hit (Destroy). 01270_ Lgt. Assault Rifle destroyed. 01275_ Penetrated by HV Slug. 01296_ Critical hit (Destroy). 01296_ Lgt. Assault Rifle destroyed. 01300_ Penetrated by HV Slug. Map ----- +----------------------------------------------------+ | ?????????????????????????????????????????????????? | | ?????????????????????????????????????????????????? | | ?????????????????????????????????????????????????? | | ?????????????????????????????????????????????????? | | ?????????????????????????????????????????????????? | | ?????????????????????????????????????????????????? | | ?????????????????????????????????????????????????? | | ?????????????????????????????????????????????????? | | ?????????????????????????????????????????????????? | | ???????????????????????????????????????????????### | | ???????????????????????????????????????????????""" | | ??????????????????????????????????????????????"""" | | ?????????????????????????????????????????????#""X" | | ?????????????????????????????????????????????#" | | ?????????????????????????????????????????????#" | | ?????????????????????????????????????????????#"""" | | ??????????????????????????????????????????????#"## | | ?????????????????????????????????????????????????? | | ?????????????????????????????????????????????????? | | ?????????????????????????????????????????????????? | | ????????????????????#######??????????????????????? | | ?????? ######???????#!!! "#??????????????????????? | | ?????? #""#??????# "#??????????????????????? | | ????? ??????# "#??????????????????????? | | ????? #????## "g##???????????####??????? | | ????? #####" %% @;#??????????? """?????? | | ?????# ##" " ##???????????" """#????? | | ??????# #"" #;#????????????" #????? | | ?????????# # #???????????"" #????? | | ???????????## #;#???????????"" "#????? | | ????????????### ";#??????????? ""?????? | | ??????########" ;;#???????????" "??????? | | ??????# ! """"" ##??????????# #??????? | | ??????#! "###"" % ######???### ###?#### | | ??????#! "#?##" """#####X# #"###""" | | ??????#! ##??#" """""" | | ??????# !""""""###???#"# * "" """ | | ??????##########?????#### " " | | ????????????????????????#;# * | | ????????????????????????? ### % | | ????????????????????????? ??## % | | ?????????????????????????????## | | ??????????????????????????????##" | | ???????????????????????????????#""" | | ??????????????????????????????##" | | ??????????????????????????????#"" ""# | | ??????????????????????????????#""" ""## | | ?????????????????????????????#""" """##? | | ?????????????????????????????#""" ""#?? | | ?????????????????????????????#"" #### | +----------------------------------------------------+ Best States ------------- Heat Dissipation 47 Energy Generation 10 Energy Capacity 250 Matter Stores 500 Matter Capacity 500 Sight Range 16 Terrain Scan Density 10 Armor Coverage 150 Evasion (%) 55 Recoil Reduction 3 Item Schematics ----------------- None Robot Schematics ------------------ None Fabricated ------------ Nothing Alien Tech Used ----------------- None Achievements -------------- None Challenges ------------ None Game ------ Seed ArmoredSignalCalibrator Manual? 0 Play Time 00:11:52 Cumulative 438.3 hours Start 2023.05.03 @ 11:06:04 End 2023.05.03 @ 11:14:50 Sessions 1 Manual Loads 0 Difficulty Rogue Special Mode None Game No. 478 Rogue 478 Adventurer 0 Explorer 0 Win Type - Total 12 Types 8/0/3/1/0/0/0/0/0 Lore% 82 Gallery% 90 Achievement% 80 Wizard Run 0 Options --------- ASCII 0 Keyboard 0 Movement Numpad Keybinds 0 Fullscreen 1 Font 18/Terminus Map View 76x50 Tactical HUD 1 Map Filters NONE Filters NONE Steam 1 RUN: 8198b298-6915-41a6-959b-b43a7b3e72fa